Cogmind - Beta 15 @@@ ROGUE MODE // 2025.05.24 @ 07:35:23 Player: Niko Result: Destroyed by G-47 Trooper with Particle Gun Performance ------------- Evolutions (2) 1000 Regions Visited (7) 1400 Robots Destroyed (17) 85 Value Destroyed (440) 440 Prototype IDs (24) 480 Alien Tech Used (0) 0 Bonus (1085) 1085 TOTAL SCORE: 4490 Bonus ------- Follower Combat Kills 85 Entered Garrisons 200 Used RIF Installer 500 Aligned with FarCom 300 Cogmind --------- Core Integrity 0/550 Matter 250/300 Energy 80/100 System Corruption 0% Temperature Cool (9) Movement Core (50) Location -8/Garrison Parts ------- > --- POWER (1) -------- (None) > --- PROPULSION (2) --- (None) > --- UTILITY (6) ------ (None) > --- WEAPON (2) ------- Datajack > --- INVENTORY (5) ---- Improved Ion Engine Peak State ------------ > --- POWER ------------ Light Deuterium Engine > --- PROPULSION ------- Wheel > --- UTILITY ---------- Small Storage Unit Light Armor Plating > --- WEAPON ----------- Guided Missile Launcher > --- INVENTORY -------- Improved Ion Engine Army-in-a-Box Datajack [Rating: 21] Favorites ----------- Power Improved Ion Engine Engine Improved Ion Engine Propulsion Wheel Wheel Wheel Utility Small Storage Unit Device Skeleton Box Storage Small Storage Unit Protection Light Armor Plating Weapon Assault Rifle Energy Gun EM Pulse Gun Ballistic Gun Assault Rifle Launcher Guided Missile Launcher Special Melee Weapon Datajack Build | -11 -10 -10 -10 -9 -8 -8 -8 ------- Run | Yrd Mat Min Exi Min Mat Sto Gar Slots Evolved 4 | . . . . . 4 . . Power . | . . . . . . . . Propulsion . | . . . . . . . . Utility 4 | . . . . . 4 . . Weapon . | . . . . . . . . Parts Attached 16 | 3 4 2 2 1 . 3 1 Power 4 | . 2 . . 1 . 1 . Engine 4 | . 2 . . 1 . 1 . Core . | . . . . . . . . Reactor . | . . . . . . . . Propulsion 2 | 2 . . . . . . . Treads . | . . . . . . . . Leg . | . . . . . . . . Wheel 2 | 2 . . . . . . . Hover . | . . . . . . . . Flight . | . . . . . . . . Utility 3 | . 1 . 1 . . 1 . Device 1 | . . . 1 . . . . Storage 1 | . 1 . . . . . . Processor . | . . . . . . . . Hackware . | . . . . . . . . Protection 1 | . . . . . . 1 . Artifact . | . . . . . . . . Weapon 7 | 1 1 2 1 . . 1 1 Energy Gun 1 | 1 . . . . . . . Energy Cannon . | . . . . . . . . Ballistic Gun 4 | . 1 2 1 . . . . Ballistic Cannon . | . . . . . . . . Launcher 1 | . . . . . . 1 . Special Weapon . | . . . . . . . . Impact Weapon . | . . . . . . . . Slashing Weapon . | . . . . . . . . Piercing Weapon . | . . . . . . . . Special Melee Weapon 1 | . . . . . . . 1 Unidentified Prototypes 2 | . . . 1 . . 1 . Parts Lost 6 | . 1 1 . . . 4 . Power . | . . . . . . . . Propulsion 2 | . . 1 . . . 1 . Utility 1 | . . . . . . 1 . Weapon 3 | . 1 . . . . 2 . Highest Loss Streak 2 | . 1 1 . . . 2 . To Critical Strikes . | . . . . . . . . Average Backups 4 | 3 5 7 5 3 2 3 3 Power 1 | 1 2 3 2 1 1 1 1 Propulsion . | . . 3 2 . . . . Utility . | . . . . 1 . 1 1 Weapon . | 1 1 1 . . . . . Tool/Special . | . . . . . . . . Unused Backups 7 | . . . 5 . . . 2 Power 2 | . . . 1 . . . 1 Propulsion 4 | . . . 4 . . . . Utility 1 | . . . . . . . 1 Weapon . | . . . . . . . . Tool/Special . | . . . . . . . . Average Slot Usage (%) 54 | . 73 74 72 71 37 30 6 Engine 10 | . 14 14 14 14 9 6 . Wheel 12 | . 28 17 14 14 9 4 . Storage 11 | . 13 14 14 14 7 9 6 Ballistic Gun 17 | . 9 28 28 28 12 8 . Peak Build Rating 21 | 3 7 7 13 11 11 21 6 Average Rating 9 | 2 5 6 9 11 8 11 4 On Entrance 6 | . 3 6 7 11 11 11 6 Naked Turns 7 | . . . . . . . 7 Heaviest Build 23 | 2 16 15 17 16 16 23 5 Greatest Support 26 | 26 26 10 10 10 10 10 3 Greatest Overweight (x) 6 | . . 1 1 1 1 6 1 Average Overweight (x) . | . . 1 1 1 . 1 . Largest Inventory Capacity 8 | 5 8 8 8 8 8 8 8 Average Capacity 7 | 5 7 8 8 8 7 7 7 Most Carried 8 | 5 7 8 8 8 8 8 8 Average Carried 7 | 3 5 7 7 8 6 7 6 Final Capacity 8 | 5 8 8 8 8 8 8 5 Final Carried 8 | 5 7 8 8 8 8 8 1 Class Distribution -------------------- 100% | Mutant Dominant Class ---------------- Mutant | -10/Materials Mutant | -10/Mines Mutant | -10/Exiles Mutant | -9/Mines Mutant | -8/Materials Mutant | -8/Storage Mutant | -8/Garrison Resources | -11 -10 -10 -10 -9 -8 -8 -8 ----------- Run | Yrd Mat Min Exi Min Mat Sto Gar Matter Collected 512 | 199 49 13 . 49 . 202 . Remotely . | . . . . . . . . Salvage Created 353 | . 49 48 . . . 256 . Parts 30 | . 5 5 . . . 20 . Haulers Intercepted . | . . . . . . . . Recyclers Shooed . | . . . . . . . . Parts Field Recycled . | . . . . . . . . Retrieved Matter . | . . . . . . . . Parts Self-Destructed . | . . . . . . . . Prevented . | . . . . . . . . Kills | -11 -10 -10 -10 -9 -8 -8 -8 ------- Run | Yrd Mat Min Exi Min Mat Sto Gar Combat Hostiles Destroyed 15 | . 3 3 . . . 9 . Guns 8 | . 3 3 . . . 2 . AOE 7 | . . . . . . 7 . Classes Destroyed 4 | . 1 . . . . 3 . Worker 2 | . . . . . . 2 . Swarmer 9 | . 3 3 . . . 3 . Grunt 4 | . . . . . . 4 . Sentry 2 | . . . . . . 2 . Best Kill Streak 9 | . 3 3 . . . 9 . Combat Bots Only 7 | . 3 3 . . . 7 . Max Kills in Single Turn 3 | . 1 2 . . . 3 . Gunslinging 1 | . . 1 . . . . . Exploded 3 | . . . . . . 3 . Melee . | . . . . . . . . Uniques/NPCs Destroyed . | . . . . . . . . Combat | -11 -10 -10 -10 -9 -8 -8 -8 -------- Run | Yrd Mat Min Exi Min Mat Sto Gar Hostile Shots Fired 130 | . 18 25 . 1 . 82 4 Missed 32 | . 2 3 . . . 26 1 Hits 98 | . 16 22 . 1 . 56 3 Projectile 98 | . 16 22 . 1 . 56 3 Critical Strikes 1 | . . . . . . 1 . Damage Taken 1246 | . 133 166 . 11 . 891 45 Core 633 | . 17 54 . . . 517 45 Absorbed by Shields . | . . . . . . . . Core Remaining (%) 85 | 100 . . . 71 . . . Volleys Fired 27 | . 6 6 . . . 15 . Largest 2 | . 2 2 . . . 2 . Hottest 60 | . 60 40 . . . 40 . Shots Fired 42 | . 8 12 . . . 22 . Gun 35 | . 8 12 . . . 15 . Cannon . | . . . . . . . . Launcher 7 | . . . . . . 7 . Special . | . . . . . . . . Kinetic 33 | . 6 12 . . . 15 . Thermal . | . . . . . . . . Explosive 7 | . . . . . . 7 . Electromagnetic 2 | . 2 . . . . . . Robot Hit Streak 10 | . 3 8 . . . 10 . Robot Miss Streak 2 | . 2 1 . . . 2 . Penetration Max . | . . . . . . . . Secondary Targets 2 | . . 2 . . . . . Max Gunslinging Chain 1 | . . 1 . . . . . Shots Hit Robots 31 | . 4 10 . . . 16 1 Core Hits 22 | . 3 4 . . . 15 . Critical Kills . | . . . . . . . . Critical Parts Destroyed . | . . . . . . . . Critical Strikes . | . . . . . . . . Melee Attacks 1 | . . . . . . . 1 Impact . | . . . . . . . . Slashing . | . . . . . . . . Piercing . | . . . . . . . . Sneak Attacks . | . . . . . . . . Combat Hostiles . | . . . . . . . . Follow-up Attacks . | . . . . . . . . Damage Inflicted 893 | . 46 102 . . . 745 . Guns 254 | . 46 102 . . . 106 . Cannons . | . . . . . . . . Explosions 639 | . . . . . . 639 . Melee . | . . . . . . . . Ramming . | . . . . . . . . Kinetic 242 | . 34 102 . . . 106 . Thermal . | . . . . . . . . Explosive 639 | . . . . . . 639 . Electromagnetic 12 | . 12 . . . . . . Impact . | . . . . . . . . Slashing . | . . . . . . . . Piercing . | . . . . . . . . Highest Corruption . | . . . . . . . . Average Corruption . | . . . . . . . . Corruption Purged . | . . . . . . . . Corruption Blocked . | . . . . . . . . Overload Shots . | . . . . . . . . Overflow Damage 15 | . . . . . . 15 . Projectiles . | . . . . . . . . Explosions 15 | . . . . . . 15 . Melee . | . . . . . . . . Knockbacks . | . . . . . . . . Impact . | . . . . . . . . Kinetic . | . . . . . . . . Secondary . | . . . . . . . . Self-Inflicted Damage 52 | . . . . . . 52 . Shots 1 | . . . . . . 1 . Rammed . | . . . . . . . . Targets Rammed . | . . . . . . . . Kicked . | . . . . . . . . Crushed . | . . . . . . . . Highest Temperature 25 | . 25 4 . . . 3 . Average Temperature 6 | . 14 1 . . . 3 . Received Heat Transfer 402 | . . . . 6 . 369 27 Siege Activations . | . . . . . . . . Martial Activations . | . . . . . . . . Shielding Activations . | . . . . . . . . Robots Disrupted . | . . . . . . . . Combat Hostiles . | . . . . . . . . Robots Corrupted . | . . . . . . . . Combat Hostiles . | . . . . . . . . Parts Fried . | . . . . . . . . Impact Corruptions . | . . . . . . . . Robots Melted . | . . . . . . . . Combat Hostiles . | . . . . . . . . Parts Melted . | . . . . . . . . Heat Transferred . | . . . . . . . . Parts Sabotaged . | . . . . . . . . Parts Stolen . | . . . . . . . . Parts Stripped . | . . . . . . . . Power Chain Reactions . | . . . . . . . . Alert | -11 -10 -10 -10 -9 -8 -8 -8 ------- Run | Yrd Mat Min Exi Min Mat Sto Gar Maximum Alert Level 1 | . . . . . . 1 1 Low Security (%) 78 | 100 100 100 . 100 100 54 . Level 1 21 | . . . . . . 45 100 Level 2 . | . . . . . . . . Level 3 . | . . . . . . . . Level 4 . | . . . . . . . . Level 5 . | . . . . . . . . High Security . | . . . . . . . . Max Security . | . . . . . . . . Peak Influence 324 | . 75 70 . 56 9 324 205 Initial 205 | . . 10 . . 9 . 205 Average 71 | . 27 44 . 8 4 136 205 Influence Increases 825 | . 89 70 . 86 . 580 . Destroy 0b10 Robot/C 360 | . 60 60 . 40 . 200 . Destroy 0b10 Robot/NC 10 | . . . . . . 10 . Destroy Leader 80 | . 10 10 . 10 . 50 . Allied During Kill 9 | . . . . 6 . 3 . Successful Hack 23 | . 4 . . . . 19 . Disable Machine 105 | . . . . . . 105 . Destroy Structure 28 | . . . . . . 28 . Lose Combat Pursuer 210 | . 15 . . 30 . 165 . Influence Decreases 620 | . 60 59 40 60 26 264 111 Entered New Map 187 | . . 19 40 . 17 . 111 Time Decay 373 | . 50 30 . 60 9 224 . Lost Part 60 | . 10 10 . . . 40 . Squads Dispatched 3 | . . . . . . 3 . Investigation 1 | . . . . . . 1 . Extermination . | . . . . . . . . Reinforcement 2 | . . . . . . 2 . Assault . | . . . . . . . . Garrison . | . . . . . . . . Intercept . | . . . . . . . . Searches Triggered . | . . . . . . . . Construction Impeded . | . . . . . . . . Haulers Reinforced . | . . . . . . . . Active Scanning Responses . | . . . . . . . . Cargo Convoy Interrupts . | . . . . . . . . Stealth | -11 -10 -10 -10 -9 -8 -8 -8 --------- Run | Yrd Mat Min Exi Min Mat Sto Gar Distress Signals 4 | . 1 . . . . 3 . Communications Jammed . | . . . . . . . . Distress Signals . | . . . . . . . . Times Spotted 40 | . 6 3 . 4 . 24 3 Peak Tracking Total 6 | . 6 3 . 2 . 6 3 Tactical Retreats 10 | . 1 . . 2 . 7 . Traps | -11 -10 -10 -10 -9 -8 -8 -8 ------- Run | Yrd Mat Min Exi Min Mat Sto Gar Traps Triggered 3 | . . . . . . 3 . Indirectly . | . . . . . . . . Trap Hack Attempts . | . . . . . . . . Triggered . | . . . . . . . . Disarmed . | . . . . . . . . Reprogrammed . | . . . . . . . . Reused . | . . . . . . . . Traps Extracted . | . . . . . . . . Installed . | . . . . . . . . Triggered . | . . . . . . . . Machines | -11 -10 -10 -10 -9 -8 -8 -8 ---------- Run | Yrd Mat Min Exi Min Mat Sto Gar Machines Disabled 7 | . . . . . . 7 . Max in Single Turn 4 | . . . . . . 4 . Machines Repaired . | . . . . . . . . Machines Dismantled . | . . . . . . . . Machines Sabotaged . | . . . . . . . . Overloaded Fab Kills . | . . . . . . . . Hacking | -11 -10 -10 -10 -9 -8 -8 -8 --------- Run | Yrd Mat Min Exi Min Mat Sto Gar Machines Accessed 10 | . 1 . 4 . . 5 . Terminals 5 | . 1 . . . . 4 . Fabricators . | . . . . . . . . Repair Stations . | . . . . . . . . Recycling Units . | . . . . . . . . Scanalyzers . | . . . . . . . . Garrison Access 1 | . . . . . . 1 . Total Hacks 58 | . 3 . 41 . . 14 . Successful 49 | . 2 . 41 . . 6 . Failed 9 | . 1 . . . . 8 . Catastrophic 1 | . . . . . . 1 . Database Lockouts . | . . . . . . . . Manual 13 | . 1 . 1 . . 11 . Terminals 16 | . 3 . . . . 13 . Fabricators . | . . . . . . . . Repair Stations . | . . . . . . . . Recycling Units . | . . . . . . . . Scanalyzers . | . . . . . . . . Garrison Access 1 | . . . . . . 1 . Terminal Hacks 44 | . 2 . 41 . . 1 . Record 40 | . . . 40 . . . . Open Door 1 | . . . . . . 1 . Alert Level 1 | . 1 . . . . . . Locate Traps 1 | . 1 . . . . . . Proto ID Catalog 1 | . . . 1 . . . . Fabricator Hacks . | . . . . . . . . Repair Station Hacks . | . . . . . . . . Recycling Unit Hacks . | . . . . . . . . Scanalyzer . | . . . . . . . . Garrison Access Hacks 1 | . . . . . . 1 . Unlock Access 1 | . . . . . . 1 . Unauthorized Hacks 4 | . . . . . . 4 . Terminals 4 | . . . . . . 4 . Botnet 3 | . . . . . . 3 . Operators 1 | . . . . . . 1 . Fabricators . | . . . . . . . . Repair Stations . | . . . . . . . . Recycling Units . | . . . . . . . . Scanalyzers . | . . . . . . . . Garrison Access . | . . . . . . . . Data Cores Recovered . | . . . . . . . . Used . | . . . . . . . . Hacking Detections 4 | . 1 . . . . 3 . Full Trace Events 2 | . 1 . . . . 1 . Feedback Events . | . . . . . . . . Feedback Blocked . | . . . . . . . . Robot Schematics Acquired . | . . . . . . . . Robots Built . | . . . . . . . . Authchips . | . . . . . . . . Time . | . . . . . . . . Total Robot Build Rating . | . . . . . . . . Part Schematics Acquired . | . . . . . . . . Parts Built . | . . . . . . . . Authchips . | . . . . . . . . Time . | . . . . . . . . Total Part Build Rating . | . . . . . . . . Parts Repaired . | . . . . . . . . Time . | . . . . . . . . Parts Recycled . | . . . . . . . . Recycled Matter . | . . . . . . . . Retrieved Matter . | . . . . . . . . Retrieved Components . | . . . . . . . . Parts Scanalyzed . | . . . . . . . . Part Schematics Acquired . | . . . . . . . . Parts Damaged . | . . . . . . . . Bothacking | -11 -10 -10 -10 -9 -8 -8 -8 ------------ Run | Yrd Mat Min Exi Min Mat Sto Gar Used RIF Installer 1 | . . . . . . . 1 Robots Hacked 1 | . . . . . . . 1 Non-combat . | . . . . . . . . Combat 1 | . . . . . . . 1 Robot Hacks Applied 1 | . . . . . . . 1 parse_system 1 | . . . . . . . 1 Relay Couplers Released . | . . . . . . . . Fabnet Peak Effective % . | . . . . . . . . Robots Rewired . | . . . . . . . . Allies Hacked . | . . . . . . . . Hacks Repelled . | . . . . . . . . Allies | -11 -10 -10 -10 -9 -8 -8 -8 -------- Run | Yrd Mat Min Exi Min Mat Sto Gar Total Allies 2 | . . . . 2 . . . Largest Group 2 | . . . . 2 2 1 . Highest-Rated Group 49 | . . . . 49 49 31 . Highest-Rated Ally 31 | . . . . 31 31 31 . Total Orders . | . . . . . . . . Ally Attacks 20 | . . . . 12 . 8 . Total Damage 289 | . . . . 143 . 146 . Kills 3 | . . . . 2 . 1 . Allies Corrupted . | . . . . . . . . Allies Melted . | . . . . . . . . Intel | -11 -10 -10 -10 -9 -8 -8 -8 ------- Run | Yrd Mat Min Exi Min Mat Sto Gar Active Infowar (turns) . | . . . . . . . . Robot Analysis Total . | . . . . . . . . Derelict Logs Recovered 2 | . . 1 . 1 . . . Drone Launches . | . . . . . . . . Drone Recoveries . | . . . . . . . . Exploration | -11 -10 -10 -10 -9 -8 -8 -8 ------------- Run | Yrd Mat Min Exi Min Mat Sto Gar Turns Passed 1635 | 57 195 74 289 381 35 572 32 Spaces Moved 1520 | 55 187 56 296 383 30 478 35 Core 257 | 9 . . . . . 213 35 Treads . | . . . . . . . . Legs . | . . . . . . . . Wheels 1263 | 46 187 56 296 383 30 265 . Hover . | . . . . . . . . Flight . | . . . . . . . . Fastest Speed 50 | 50 90 95 95 95 80 80 50 Average Speed 97 | 83 90 95 95 95 91 107 84 Slowest Speed 350 | 90 90 95 95 95 95 350 100 Overloaded Moves . | . . . . . . . . Propulsion Burnouts . | . . . . . . . . Robots Hopped . | . . . . . . . . Potential Cave-ins . | . . . . . . . . Cave-ins Triggered . | . . . . . . . . Exploration Rate (%) 30 | 3 35 18 62 53 5 61 6 Regions Visited 7 Branch Regions 4 Pre-discovered Areas 2 | . . 1 1 . . . . Known Exits Taken 1 | . . . . . . 1 . Unknown Exits Taken 6 | 1 1 1 1 1 1 . . Scrap Searched . | . . . . . . . . Spaces Dug . | . . . . . . . . Terrain Destroyed 33 | . . . . . . 33 . Melee . | . . . . . . . . Projectile . | . . . . . . . . AOE 33 | . . . . . . 33 . Terrain Rammed . | . . . . . . . . Walls Destroyed . | . . . . . . . . Machines Disabled . | . . . . . . . . Actions | -11 -10 -10 -10 -9 -8 -8 -8 --------- Run | Yrd Mat Min Exi Min Mat Sto Gar Total 1632 | 65 206 66 306 400 38 513 38 Wait 20 | . 3 . . 15 . 2 . Move 1514 | 54 186 55 295 382 29 478 35 Hop . | . . . . . . . . Pick Up 23 | 8 6 2 1 1 3 2 . Fast Attach 5 | . . . 1 . 1 3 . Attach 12 | 3 4 1 . . 2 1 1 Detach . | . . . . . . . . Swap 3 | . . 1 1 1 . . . Drop 18 | . 1 1 7 1 3 4 1 Fire 27 | . 6 6 . . . 15 . Melee 1 | . . . . . . . 1 Ram . | . . . . . . . . Kick . | . . . . . . . . Crush . | . . . . . . . . Escape Stasis 8 | . . . . . . 8 . Rewire 1 | . . . 1 . . . . Trap . | . . . . . . . . Miscellaneous . | . . . . . . . . Route ------- -11/Scrapyard -10/Materials (discovered 2 exits: [*Mat] / [*Min]) -10/Mines -10/Exiles -9/Mines -8/Materials -8/Storage -8/Garrison History --------- Turn | Location | Event 4 | -11/Scrapyard | Discovered new exit (range 16) 58 | -11/Scrapyard | Entered Materials 188 | -10/Materials | Discovered new exit (range 15) 247 | -10/Materials | Discovered new exit (range 8) 253 | -10/Materials | Entered Mines 273 | -10/Mines | Learned location of Storage (-8) 303 | -10/Mines | Build established: Mutant 323 | -10/Mines | Deemed a non-threat by the Exiles lab entrance 323 | -10/Mines | Discovered new exit (range 5) 327 | -10/Mines | Entered Exiles 350 | -10/Exiles | Met 8R-AWN 367 | -10/Exiles | Met EX-HEX 409 | -10/Exiles | Met EX-BIN 422 | -10/Exiles | Aligned with FarCom system 423 | -10/Exiles | Given EX-Vault access code 444 | -10/Exiles | Opened EX-Vault 452 | -10/Exiles | Found Prototype Device 452 | -10/Exiles | Identified Skeleton Box 498 | -10/Exiles | Found Army-in-a-Box 531 | -10/Exiles | Warned to stay clear of 0b10 Research branches 557 | -10/Exiles | Met EX-DEC 566 | -10/Exiles | Learned location of Zion (-7) 603 | -10/Exiles | Discovered new exit (range 14) 616 | -10/Exiles | Left Exiles lab with Army-in-a-Box 616 | -10/Exiles | Entered Mines 696 | -9/Mines | Assembled infested the area 896 | -9/Mines | Learned Materials terminal intel 953 | -9/Mines | Discovered new exit (range 9) 997 | -9/Mines | Entered Materials 997 | -8/Materials | Accompanied by 2 allies 997 | -8/Materials | Evolved 4 slots: Utility x4 998 | -8/Materials | Loaded intel: 10 terminal locations 1002 | -8/Materials | Led the pair of lost Derelicts to an unsafe place 1027 | -8/Materials | Discovered new exit (range 5) 1032 | -8/Materials | Entered Storage 1032 | -8/Storage | Accompanied by 1 ally 1300 | -8/Storage | Found Prototype Launcher 1300 | -8/Storage | Identified Gui. Missile Launcher 1366 | -8/Storage | Destroyed 7 combat bots 1419 | -8/Storage | Core integrity fell below 50% 1510 | -8/Storage | Core integrity fell below 20% 1604 | -8/Storage | Identified exit to Garrison 1604 | -8/Storage | Entered Garrison 1628 | -8/Garrison | Installed Relay Interface Framework 1636 | -8/Garrison | Destroyed by G-47 Trooper with Particle Gun Last Messages --------------- reinforcements to Terminal S004. Triggered Blade Trap. Massive razor-sharp blades shoot up from within the floor. Triggered Blade Trap. Massive razor-sharp blades shoot up from within the floor. Connecting with Garrison Access... >>Unlock Access door unlocked. EXIT=UNLOCKED: GARRISON LOCATION=GARRISON GOAL=ESCAPE Receiving FarCom transmissions... Initiating installation procedure... Relay Interface Framework installed. Dropped Sml. Storage Unit. Jacked G-47 Trooper... >>parse_system Reading system data... Map ----- +----------------------------------------------------+ | | | | | | | | | | | ?????????????????????????????????????????????????? | | ?????????????????????????????????????????????????? | | ?????????????????????????????????????????????????? | | ?????????????????????????????????????????????????? | | ?????????????????????????????????????????????????? | | ?????????????????????????????????????????????????? | | ?????????????????????????????????????????????????? | | ?????????????????????????????????????????????????? | | ??????????????????#######????????????????????????? | | ??????????????????# #????????????????????????? | | ??????????????????# #????????????????????????? | | ??????????????????# #????????????????????????? | | ??????????????????# ###????????????????????????? | | ??????????????????# #??????????????????????????? | | ??????????????????# #??????????????????????????? | | ??????????????????# #??????????????????????????? | | ??????????????????# #??????????????????????????? | | ??????????????????# #??????????????????????????? | | ??????????????????# #?????????#######??????????? | | ??????????????????# ########### """"#??????????? | | ??????????????????# ggg@ !!"#??????????? | | ??????????????????# ########### """"#??????????? | | ??????????????????# #?????????#######??????????? | | ??????????????????# #??????????????????????????? | | ??????????????????# ??????????????????????????? | | ??????????????????# ??????????????????????????? | | ??????????????????# #??????????????????????????? | | ??????????????????# #??????????????????????????? | | ??????????????????# ???????Y???????????????????? | | ??????????????????# ???????????????????????????? | | ??????????????????# ???????????????????????????? | | ??????????????????# ???????????????????????????? | | ??????????????????# ???????????????????????????? | | ??????????????????# ???????????????????????????? | | ??????????????????? ???????????????????????????? | | ?????????????????????????????????????????????????? | | ?????????????????????????????????????????????????? | | ?????????????????????????????????????????????????? | | ?????????????????????????????????????????????????? | | ?????????????????????????????????????????????????? | | ?????????????????????????????????????????????????? | | ?????????????????????????????????????????????????? | | ?????????????????????????????????????????????????? | | ?????????????????????????????????????????????????? | | ?????????????????????????????????????????????????? | +----------------------------------------------------+ Best States ------------- Heat Dissipation 31 Energy Generation 14 Energy Capacity 265 Matter Stores 269 Matter Capacity 300 Sight Range 16 Terrain Scan Density 10 Armor Coverage 150 Evasion (%) 50 Item Schematics ----------------- None Robot Schematics ------------------ None Fabricated ------------ Nothing Repaired ---------- Nothing Alien Tech Used ----------------- None Achievements -------------- None Challenges ------------ None Game ------ Seed CloakImpulseSink Manual? 0 Play Time 00:19:24 Cumulative 25.4 hours Start 2025.05.20 @ 10:43:00 End 2025.05.24 @ 07:35:23 Sessions 3 Manual Loads 0 Difficulty Rogue Special Mode None Game No. 46 Rogue 46 Adventurer 0 Explorer 0 Win Type - Total 0 Types 0/0/0/0/0/0/0/0/0/0 Lore% 14 Gallery% 23 Achievement% 25 Wizard Run 0 Options --------- Layout 1 ASCII 0 Keyboard 0 Movement Mouse Keybinds 0 Fullscreen 1 Font 24/Smallcaps Map View 50x35 Zoom Use 0% Tactical HUD 0 Map Filters NONE Filters NONE Steam 1 RUN: 7fd1a3c5-5557-4bc9-94ce-1abf1c4e4242